fUSD/lending_fUSD_20240827
["ID","MTS","AMOUNT","RATE_DAILY","PERIOD"]
[336268765,1724753437968,-500.0,0.00010958,2]
[336268766,1724753437977,-500.0,0.00010958,2]
[336268767,1724753437987,-500.0,0.00010958,2]
[336268768,1724753437997,-630.51,0.00010958,2]
[336268769,1724753438006,-398.96270173,0.00010958,2]
[336268770,1724753438016,-500.0,0.00010958,2]
[336268771,1724753438027,-500.0,0.00010958,2]
[336268772,1724753438036,-500.0,0.00010958,2]
[336268773,1724753438046,-500.0,0.00010958,2]
[336268774,1724753438055,-500.0,0.00010958,2]
[336268775,1724753438065,-500.0,0.00010958,2]
[336268776,1724753438074,-500.0,0.00010958,2]
[336268777,1724753438084,-526.86,0.00010958,2]
[336268778,1724753438093,-500.0,0.00010958,2]
[336268779,1724753438103,-500.0,0.00010958,2]
[336268781,1724753438112,-567.35,0.00010958,2]
[336268782,1724753438121,-500.0,0.00010958,2]
[336268783,1724753438131,-500.0,0.00010958,2]
[336268784,1724753438140,-500.0,0.00010958,2]
[336268785,1724753438150,-500.0,0.00010958,2]
[336268786,1724753438159,-500.0,0.00010958,2]
[336268787,1724753438169,-500.0,0.00010958,2]
[336268788,1724753438178,-500.0,0.00010958,2]
[336268789,1724753438187,-500.0,0.00010958,2]
[336268790,1724753438197,-500.0,0.00010958,2]
[336268791,1724753438206,-500.0,0.00010958,2]
[336268792,1724753438215,-701.14,0.00010958,2]
[336268793,1724753438225,-500.0,0.00010958,2]
[336268794,1724753438234,-500.0,0.00010958,2]
[336268795,1724753438243,-500.0,0.00010958,2]
[336268796,1724753438252,-500.0,0.00010958,2]
[336268797,1724753438262,-518.25208043,0.00010958,2]
[336268798,1724753438272,-500.0,0.00010958,2]
[336268799,1724753438282,-500.0,0.00010958,2]
[336268800,1724753438291,-1169.96,0.00010958,2]
[336268801,1724753438300,-500.0,0.00010958,2]
[336268802,1724753438309,-500.0,0.00010958,2]
[336268803,1724753438319,-500.0,0.00010958,2]
[336268804,1724753438328,-614.5,0.00010958,2]
[336268805,1724753438338,-500.0,0.00010958,2]
[336268806,1724753438349,-500.0,0.00010958,2]
[336268807,1724753438360,-500.0,0.00010958,2]
[336268808,1724753438369,-500.0,0.00010958,2]
[336268809,1724753438379,-500.0,0.00010958,2]
[336268810,1724753438388,-500.0,0.00010958,2]
[336268811,1724753438398,-500.0,0.00010958,2]
[336268813,1724753438407,-500.0,0.00010958,2]
[336268815,1724753438417,-500.0,0.00010958,2]
[336268817,1724753438426,-639.41,0.00010958,2]
[336268820,1724753438436,-778.43,0.00010958,2]
[336268823,1724753438446,-1053.25,0.00010958,2]
[336268825,1724753438456,-500.0,0.00010958,2]
[336268827,1724753438466,-500.0,0.00010958,2]
[336268829,1724753438476,-610.8,0.00010958,2]
[336268831,1724753438485,-500.0,0.00010958,2]
[336268833,1724753438495,-500.0,0.00010958,2]
[336268835,1724753438504,-1025.13,0.00010958,2]
[336268837,1724753438514,-500.0,0.00010958,2]
[336268839,1724753438524,-500.0,0.00010958,2]
[336268841,1724753438533,-973.11,0.00010958,2]
[336268843,1724753438542,-500.0,0.00010958,2]
[336268844,1724753438554,-500.0,0.00010958,2]
[336268845,1724753438564,-500.0,0.00010958,2]
[336268846,1724753438573,-500.0,0.00010958,2]
[336268847,1724753438583,-773.04,0.00010958,2]
[336268848,1724753438593,-500.0,0.00010958,2]
[336268849,1724753438603,-500.0,0.00010958,2]
[336268850,1724753438612,-554.04126933,0.00010958,2]
[336268851,1724753438622,-767.9,0.00010958,2]
[336268852,1724753438634,-500.0,0.00010958,2]
[336268853,1724753438644,-500.0,0.00010958,2]
[336268854,1724753438655,-500.0,0.00010958,2]
[336268855,1724753438665,-500.0,0.00010958,2]
[336268856,1724753438675,-500.0,0.00010958,2]
[336268857,1724753438684,-368.93177032,0.00010958,2]
[336268858,1724753438693,-500.0,0.00010958,2]
[336268859,1724753438703,-509.51,0.00010958,2]
[336268860,1724753438712,-500.0,0.00010958,2]
[336268861,1724753438721,-500.0,0.00010958,2]
[336268862,1724753438730,-500.0,0.00010958,2]
[336268864,1724753438740,-500.0,0.00010958,2]
[336268866,1724753438749,-500.0,0.00010958,2]
[336268868,1724753438759,-500.0,0.00010958,2]
[336268870,1724753438768,-500.0,0.00010958,2]
[336268872,1724753438781,-500.0,0.00010958,2]
[336268874,1724753438791,-500.0,0.00010958,2]
[336268876,1724753438801,-500.0,0.00010958,2]
[336268878,1724753438811,-500.0,0.00010958,2]
[336268880,1724753438821,-500.0,0.00010958,2]
[336268882,1724753438831,-500.0,0.00010958,2]
[336268884,1724753438841,-500.0,0.00010958,2]
[336268886,1724753438850,-211.41997582,0.00010958,2]
[336268888,1724753438860,-500.0,0.00010958,2]
[336268890,1724753438871,-500.0,0.00010958,2]
[336268892,1724753438880,-500.0,0.00010958,2]
[336268894,1724753438891,-500.0,0.00010958,2]
[336268896,1724753438904,-500.0,0.00010958,2]
[336268898,1724753438915,-500.0,0.00010958,2]
[336268900,1724753438926,-491.46,0.00010958,2]
[336268902,1724753438936,-500.0,0.00010958,2]
[336268904,1724753438946,-741.96,0.00010958,2]
[336268906,1724753438955,-451.4123094,0.00010958,2]
[336268926,1724753439165,-48.5876906,0.00010958,2]
[336268928,1724753439175,-416.39038951,0.00010958,2]
[336268930,1724753439186,-500.0,0.00010958,2]
[336268932,1724753439195,-392.45559423,0.00010958,2]
[336268935,1724753439213,-401.94440577,0.00010958,2]
[336268937,1724753439222,-500.0,0.00010958,2]
[336268939,1724753439231,-151.0,0.00010958,2]
[336268941,1724753439241,-500.0,0.00010958,2]
[336268943,1724753439250,-46.27224888,0.00010958,2]
[336268947,1724753439279,-104.72775112,0.00010958,2]
[336268948,1724753439288,-429.62244074,0.00010958,2]
[336268951,1724753439300,-70.37755926,0.00010958,2]
[336268953,1724753439309,-500.0,0.00010958,2]
[336268955,1724753439320,-500.0,0.00010958,2]
[336268957,1724753439329,-248.65701597,0.00010958,2]
[336268960,1724753439359,-251.34298403,0.00010958,2]
[336268962,1724753439368,-500.0,0.00010958,2]
[336268964,1724753439378,-500.0,0.00010958,2]
[336268966,1724753439387,-110.80491644,0.00010958,2]
[336268969,1724753439399,-389.19508356,0.00010958,2]
[336268971,1724753439408,-181.04177369,0.00010958,2]
[336268973,1724753439420,-318.95822631,0.00010958,2]
[336268975,1724753439430,-500.0,0.00010958,2]
[336268977,1724753439439,-140.75163028,0.00010958,2]
[336268979,1724753439451,-359.24836972,0.00010958,2]
[336268981,1724753439461,-500.0,0.00010958,2]
[336268983,1724753439470,-500.0,0.00010958,2]
[336268985,1724753439480,-253.67989754,0.00010958,2]
[336268987,1724753439491,-246.32010246,0.00010958,2]
[336268989,1724753439500,-358.36615225,0.00010958,2]
[336268991,1724753439510,-500.0,0.00010958,2]
[336268993,1724753439519,-187.59409565,0.00010958,2]
[336268996,1724753439555,-312.40590435,0.00010958,2]
[336268998,1724753439568,-500.0,0.00010958,2]
[336269000,1724753439578,-500.0,0.00010958,2]
[336269002,1724753439589,-500.0,0.00010958,2]
[336269004,1724753439598,-3.29046102,0.00010958,2]
[336269006,1724753439610,-496.70953898,0.00010958,2]
[336269008,1724753439620,-500.0,0.00010958,2]
[336269010,1724753439629,-620.49,0.00010958,2]
[336269012,1724753439638,-500.0,0.00010958,2]
[336269014,1724753439647,-500.0,0.00010958,2]
[336269016,1724753439657,-500.0,0.00010958,2]
[336269018,1724753439666,-46.09223915,0.00010958,2]
[336269022,1724753439684,-453.90776085,0.00010958,2]
[336269023,1724753439693,-330.23797656,0.00010958,2]
[336269046,1724753439859,-169.76202344,0.00010958,2]
[336269048,1724753439868,-500.0,0.00010958,2]
[336269050,1724753439878,-500.0,0.00010958,2]
[336269052,1724753439887,-500.0,0.00010958,2]
[336269054,1724753439896,-151.0,0.00010958,2]
[336269056,1724753439906,-500.0,0.00010958,2]
[336269058,1724753439915,-500.0,0.00010958,2]
[336269060,1724753439924,-500.0,0.00010958,2]
[336269062,1724753439933,-997.6,0.00010958,2]
[336269064,1724753439943,-808.11,0.00010958,2]
[336269066,1724753439952,-500.0,0.00010958,2]
[336269068,1724753439962,-616.95,0.00010958,2]
[336269070,1724753439971,-500.0,0.00010958,2]
[336269072,1724753439980,-585.47,0.00010958,2]
[336269074,1724753439989,-723.87,0.00010958,2]
[336269076,1724753439998,-500.0,0.00010958,2]
[336269078,1724753440007,-500.0,0.00010958,2]
[336269080,1724753440017,-500.0,0.00010958,2]
[336269082,1724753440031,-618.45,0.00010958,2]
[336269084,1724753440040,-500.0,0.00010958,2]
[336269085,1724753440053,-500.0,0.00010958,2]
[336269087,1724753440062,-208.858696,0.00010958,2]
[336269089,1724753440071,-500.0,0.00010958,2]
[336269091,1724753440080,-500.0,0.00010958,2]
[336269093,1724753440089,-500.0,0.00010958,2]
[336269095,1724753440099,-500.0,0.00010958,2]
[336269097,1724753440108,-500.0,0.00010958,2]
[336269099,1724753440117,-500.0,0.00010958,2]
[336269101,1724753440127,-500.0,0.00010958,2]
[336269103,1724753440136,-500.0,0.00010958,2]
[336269105,1724753440145,-500.0,0.00010958,2]
[336269107,1724753440155,-500.0,0.00010958,2]
[336269109,1724753440164,-500.0,0.00010958,2]
[336269111,1724753440173,-500.0,0.00010958,2]
[336269113,1724753440182,-500.0,0.00010958,2]
[336269115,1724753440192,-500.0,0.00010958,2]
[336269117,1724753440201,-1077.62,0.00010958,2]
[336269119,1724753440210,-406.23895094,0.00010958,2]
[336269121,1724753440220,-828.72,0.00010958,2]
[336269123,1724753440229,-540.39,0.00010958,2]
[336269125,1724753440238,-500.0,0.00010958,2]
[336269127,1724753440248,-500.0,0.00010958,2]
[336269129,1724753440258,-151.0,0.00010958,2]
[336269131,1724753440267,-500.0,0.00010958,2]
[336269133,1724753440280,-500.0,0.00010958,2]
[336269135,1724753440289,-920.79,0.00010958,2]
[336269137,1724753440299,-583.36,0.00010958,2]
[336269139,1724753440309,-500.0,0.00010958,2]
[336269141,1724753440318,-670.32,0.00010958,2]
[336269143,1724753440328,-151.0,0.00010958,2]
[336269145,1724753440338,-500.0,0.00010958,2]
[336269147,1724753440352,-500.0,0.00010958,2]
[336269149,1724753440362,-559.71,0.00010958,2]
[336269151,1724753440372,-500.0,0.00010958,2]
[336269153,1724753440382,-500.0,0.00010958,2]
[336269155,1724753440392,-500.0,0.00010958,2]
[336269157,1724753440401,-500.0,0.00010958,2]
[336269159,1724753440411,-500.0,0.00010958,2]
[336269161,1724753440421,-500.0,0.00010958,2]
[336269163,1724753440430,-603.14150884,0.00010958,2]
[336269165,1724753440440,-500.0,0.00010958,2]
[336269167,1724753440451,-500.0,0.00010958,2]
[336269169,1724753440460,-500.0,0.00010958,2]
[336269171,1724753440470,-1071.99,0.00010958,2]
[336269173,1724753440479,-152.605188,0.00010958,2]
[336269175,1724753440488,-150.102167,0.00010958,2]
[336269177,1724753440497,-500.0,0.00010958,2]
[336269179,1724753440506,-500.0,0.00010958,2]
[336269181,1724753440515,-500.0,0.00010958,2]
[336269183,1724753440526,-1774.74,0.00010958,2]
[336269185,1724753440536,-511.9,0.00010958,2]
[336269187,1724753440549,-500.0,0.00010958,2]
[336269189,1724753440559,-500.0,0.00010958,2]
[336269191,1724753440568,-3157.78,0.00010958,2]
[336269193,1724753440578,-151.0,0.00010958,2]
[336269195,1724753440589,-500.0,0.00010958,2]
[336269197,1724753440598,-500.0,0.00010958,2]
[336269199,1724753440608,-500.0,0.00010958,2]
[336269201,1724753440617,-691.86,0.00010958,2]
[336269203,1724753440626,-3107.38,0.00010958,2]
[336269205,1724753440637,-1643.34,0.00010958,2]
[336269207,1724753440646,-151.0,0.00010958,2]
[336269209,1724753440656,-151.0,0.00010958,2]
[336269211,1724753440665,-500.0,0.00010958,2]
[336269213,1724753440674,-500.0,0.00010958,2]
[336269215,1724753440683,-1000.0,0.00010958,2]
[336269217,1724753440693,-228.592688,0.00010958,2]
[336269219,1724753440702,-500.0,0.00010958,2]
[336269221,1724753440711,-1851.19,0.00010958,2]
[336269223,1724753440720,-500.0,0.00010958,2]
[336269225,1724753440730,-500.0,0.00010958,2]
[336269227,1724753440740,-500.0,0.00010958,2]
[336269229,1724753440749,-500.0,0.00010958,2]
[336269231,1724753440759,-636.45,0.00010958,2]
[336269233,1724753440768,-1342.91,0.00010958,2]
[336269235,1724753440780,-400.0,0.00010958,2]
[336269237,1724753440789,-500.0,0.00010958,2]
[336269258,1724753440976,-500.0,0.00010958,2]
[336269260,1724753440986,-500.0,0.00010958,2]
[336269262,1724753440995,-863.42,0.00010958,2]
[336269264,1724753441005,-500.0,0.00010958,2]
[336269266,1724753441015,-500.0,0.00010958,2]
[336269268,1724753441026,-500.0,0.00010958,2]
[336269270,1724753441036,-500.0,0.00010958,2]
[336269272,1724753441045,-500.0,0.00010958,2]
[336269274,1724753441053,-500.0,0.00010958,2]
[336269276,1724753441062,-500.0,0.00010958,2]
[336269278,1724753441073,-500.0,0.00010958,2]
[336269279,1724753441082,-500.0,0.00010958,2]
[336269281,1724753441091,-500.0,0.00010958,2]
[336269284,1724753441101,-500.0,0.00010958,2]
[336269286,1724753441111,-1456.7,0.00010958,2]
[336269287,1724753441120,-500.0,0.00010958,2]
[336269289,1724753441129,-2107.88,0.00010958,2]
[336269291,1724753441138,-500.0,0.00010958,2]
[336269293,1724753441147,-500.0,0.00010958,2]
[336269295,1724753441157,-500.0,0.00010958,2]
[336269297,1724753441166,-890.13,0.00010958,2]
[336269299,1724753441175,-500.0,0.00010958,2]
[336269301,1724753441185,-500.0,0.00010958,2]
[336269303,1724753441194,-500.0,0.00010958,2]
[336269305,1724753441205,-1502.55,0.00010958,2]
[336269308,1724753441214,-500.0,0.00010958,2]
[336269309,1724753441223,-151.0,0.00010958,2]
[336269311,1724753441232,-151.0,0.00010958,2]
[336269313,1724753441242,-500.0,0.00010958,2]
[336269315,1724753441252,-549.78,0.00010958,2]
[336269317,1724753441261,-500.0,0.00010958,2]
[336269319,1724753441270,-500.0,0.00010958,2]
[336269321,1724753441280,-500.0,0.00010958,2]
[336269323,1724753441290,-500.0,0.00010958,2]
[336269325,1724753441299,-3360.54,0.00010958,2]
[336269327,1724753441309,-151.0,0.00010958,2]
[336269329,1724753441318,-837.45,0.00010958,2]
[336269331,1724753441328,-1400.7,0.00010958,2]
[336269333,1724753441337,-151.0,0.00010958,2]
[336269335,1724753441347,-500.0,0.00010958,2]
[336269337,1724753441356,-500.0,0.00010958,2]
[336269339,1724753441365,-151.0,0.00010958,2]
[336269341,1724753441375,-500.0,0.00010958,2]
[336269343,1724753441385,-500.0,0.00010958,2]
[336269345,1724753441394,-1109.94,0.00010958,2]
[336269347,1724753441404,-702.7,0.00010958,2]
[336269349,1724753441414,-500.0,0.00010958,2]
[336269351,1724753441423,-500.0,0.00010958,2]
[336269353,1724753441432,-500.0,0.00010958,2]
[336269355,1724753441442,-5103.94,0.00010958,2]
[336269357,1724753441452,-500.0,0.00010958,2]
[336269359,1724753441462,-557.72,0.00010958,2]
[336269361,1724753441472,-1278.92,0.00010958,2]
[336269363,1724753441481,-516.25,0.00010958,2]
[336269365,1724753441490,-526.07,0.00010958,2]
[336269367,1724753441500,-151.0,0.00010958,2]
[336269369,1724753441512,-500.0,0.00010958,2]
[336269371,1724753441523,-1963.25,0.00010958,2]
[336269373,1724753441532,-6017.97,0.00010958,2]
[336269375,1724753441541,-168.52309582,0.00010958,2]
[336269377,1724753441551,-500.0,0.00010958,2]
[336269379,1724753441564,-500.0,0.00010958,2]
[336269381,1724753441573,-528.68247211,0.00010958,2]
[336269383,1724753441583,-503.10415572,0.00010958,2]
[336269385,1724753441592,-500.0,0.00010958,2]
[336269387,1724753441602,-502.41816467,0.00010958,2]
[336269389,1724753441611,-1560.78,0.00010958,2]
[336269391,1724753441620,-204.86416037,0.00010958,2]
[336269393,1724753441630,-500.0,0.00010958,2]
[336269395,1724753441639,-500.0,0.00010958,2]
[336269396,1724753441648,-500.0,0.00010958,2]
[336269398,1724753441658,-500.0,0.00010958,2]
[336269400,1724753441667,-500.0,0.00010958,2]
[336269402,1724753441676,-500.0,0.00010958,2]
[336269404,1724753441685,-1943.33,0.00010958,2]
[336269406,1724753441695,-500.0,0.00010958,2]
[336269408,1724753441705,-1250.571391,0.00010958,2]
[336269410,1724753441714,-3397.79,0.00010958,2]
[336269412,1724753441724,-819.825552,0.00010958,2]
[336269414,1724753441734,-500.0,0.00010958,2]
[336269416,1724753441743,-500.0,0.00010958,2]
[336269418,1724753441753,-500.0,0.00010958,2]
[336269420,1724753441762,-500.0,0.00010958,2]
[336269422,1724753441773,-2245.919946,0.00010958,2]
[336269424,1724753441783,-500.0,0.00010958,2]
[336269426,1724753441793,-500.0,0.00010958,2]
[336269428,1724753441803,-500.0,0.00010958,2]
[336269430,1724753441812,-500.0,0.00010958,2]
[336269432,1724753441822,-4588.9,0.00010958,2]
[336269434,1724753441832,-574.37,0.00010958,2]
[336269436,1724753441846,-720.03,0.00010958,2]
[336269438,1724753441857,-406.99802048,0.00010958,2]
[336269440,1724753441867,-1243.71,0.00010958,2]
[336269442,1724753441877,-500.0,0.00010958,2]
[336269444,1724753441886,-2000.0,0.00010959,2]
[336269446,1724753441896,-221.28,0.00010959,2]
[336269448,1724753441906,-250.0,0.00010959,2]
[336269450,1724753441915,-228.05,0.00010959,2]
[336269452,1724753441924,-2000.0,0.00010959,2]
[336269454,1724753441933,-150.0,0.00010979,2]
[336269456,1724753441943,-1242.10285864,0.00010989,2]
[336269458,1724753441952,-567.35,0.0001099,2]
[336269460,1724753441962,-500.0,0.0001099,2]
[336269462,1724753441971,-500.0,0.0001099,2]
[336269463,1724753441980,-151.0,0.0001099,2]
[336269465,1724753441995,-500.0,0.0001099,2]
[336269467,1724753442006,-500.0,0.0001099,2]
[336269470,1724753442016,-151.0,0.0001099,2]
[336269471,1724753442027,-500.0,0.0001099,2]
[336269473,1724753442036,-151.0,0.0001099,2]
[336269475,1724753442046,-151.0,0.0001099,2]
[336269477,1724753442056,-151.0,0.0001099,2]
[336269479,1724753442065,-167.648586,0.0001099,2]
[336269481,1724753442075,-151.0,0.0001099,2]
[336269482,1724753442084,-151.0,0.0001099,2]
[336269484,1724753442093,-151.0,0.0001099,2]
[336269486,1724753442103,-151.0,0.0001099,2]
[336269488,1724753442111,-500.0,0.0001099,2]
[336269490,1724753442121,-500.0,0.0001099,2]
[336269492,1724753442130,-500.0,0.0001099,2]
[336269494,1724753442140,-500.0,0.0001099,2]
[336269496,1724753442149,-500.0,0.0001099,2]
[336269498,1724753442159,-500.0,0.0001099,2]
[336269500,1724753442169,-741.96,0.0001099,2]
[336269502,1724753442178,-176.590308,0.0001099,2]
[336269504,1724753442188,-151.0,0.0001099,2]
[336269506,1724753442197,-500.0,0.0001099,2]
[336269508,1724753442206,-151.0,0.0001099,2]
[336269510,1724753442215,-151.0,0.0001099,2]
[336269512,1724753442224,-151.0,0.0001099,2]
[336269514,1724753442233,-151.0,0.0001099,2]
[336269516,1724753442243,-151.0,0.0001099,2]
[336269518,1724753442252,-151.0,0.0001099,2]
[336269520,1724753442262,-636.45,0.0001099,2]
[336269522,1724753442272,-863.42,0.0001099,2]
[336269524,1724753442293,-500.0,0.0001099,2]
[336269526,1724753442303,-500.0,0.0001099,2]
[336269528,1724753442312,-500.0,0.0001099,2]
[336269530,1724753442321,-890.13,0.0001099,2]
[336269532,1724753442331,-500.0,0.0001099,2]
[336269534,1724753442340,-500.0,0.0001099,2]
[336269536,1724753442351,-837.45,0.0001099,2]
[336269538,1724753442361,-500.0,0.0001099,2]
[336269540,1724753442370,-500.0,0.0001099,2]
[336269542,1724753442380,-500.0,0.0001099,2]
[336269544,1724753442389,-500.0,0.0001099,2]
[336269545,1724753442398,-500.0,0.0001099,2]
[336269547,1724753442407,-500.0,0.0001099,2]
[336269549,1724753442417,-557.72,0.0001099,2]
[336269551,1724753442426,-526.07,0.0001099,2]
[336269553,1724753442435,-500.0,0.0001099,2]
[336269556,1724753442445,-500.0,0.0001099,2]
[336269559,1724753442455,-500.0,0.0001099,2]
[336269562,1724753442464,-500.0,0.0001099,2]
[336269564,1724753442473,-500.0,0.0001099,2]
[336269566,1724753442482,-1250.571391,0.0001099,2]
[336269568,1724753442491,-819.825552,0.0001099,2]
[336269570,1724753442500,-500.0,0.0001099,2]
[336269572,1724753442509,-2245.919946,0.0001099,2]
[336269574,1724753442518,-500.0,0.0001099,2]
[336269576,1724753442532,-500.0,0.0001099,2]
[336269578,1724753442541,-4588.9,0.0001099,2]
[336269580,1724753442555,-720.03,0.0001099,2]
[336269583,1724753442565,-500.0,0.0001099,2]
[336269585,1724753442574,-500.0,0.00010991,2]
[336269587,1724753442583,-500.0,0.00010991,2]
[336269589,1724753442594,-500.0,0.00010991,2]
[336269591,1724753442603,-500.0,0.00010991,2]
[336269593,1724753442613,-630.51,0.00010991,2]
[336269595,1724753442622,-500.0,0.00010991,2]
[336269597,1724753442633,-500.0,0.00010991,2]
[336269600,1724753442643,-500.0,0.00010991,2]
[336269603,1724753442652,-500.0,0.00010991,2]
[336269607,1724753442662,-500.0,0.00010991,2]
[336269611,1724753442671,-500.0,0.00010991,2]
[336269614,1724753442681,-500.0,0.00010991,2]
[336269617,1724753442690,-526.86,0.00010991,2]
[336269620,1724753442699,-500.0,0.00010991,2]
[336269623,1724753442708,-500.0,0.00010991,2]
[336269626,1724753442717,-500.0,0.00010991,2]
[336269628,1724753442726,-500.0,0.00010991,2]
[336269630,1724753442735,-500.0,0.00010991,2]
[336269632,1724753442745,-329.32383647,0.00010991,2]
[336269634,1724753442754,-500.0,0.00010991,2]
[336269636,1724753442763,-151.0,0.00010991,2]
[336269638,1724753442773,-500.0,0.00010991,2]
[336269640,1724753442786,-500.0,0.00010991,2]
[336269642,1724753442795,-500.0,0.00010991,2]
[336269644,1724753442804,-500.0,0.00010991,2]
[336269645,1724753442814,-500.0,0.00010991,2]
[336269647,1724753442823,-500.0,0.00010991,2]
[336269649,1724753442832,-500.0,0.00010991,2]
[336269651,1724753442841,-500.0,0.00010991,2]
[336269653,1724753442850,-500.0,0.00010991,2]
[336269655,1724753442859,-151.0,0.00010991,2]
[336269657,1724753442869,-500.0,0.00010991,2]
[336269659,1724753442878,-151.0,0.00010991,2]
[336269661,1724753442888,-500.0,0.00010991,2]
[336269663,1724753442897,-151.0,0.00010991,2]
[336269665,1724753442907,-151.0,0.00010991,2]
[336269666,1724753442917,-500.0,0.00010991,2]
[336269667,1724753442927,-500.0,0.00010991,2]
[336269668,1724753442937,-500.0,0.00010991,2]
[336269669,1724753442946,-500.0,0.00010991,2]
[336269670,1724753442955,-151.0,0.00010991,2]
[336269671,1724753442964,-500.0,0.00010991,2]
[336269672,1724753442973,-500.0,0.00010991,2]
[336269673,1724753442982,-320.31294123,0.00010991,2]
[336269674,1724753442991,-620.49,0.00010991,2]
[336269675,1724753443000,-828.72,0.00010991,2]
[336269676,1724753443009,-151.0,0.00010991,2]
[336269677,1724753443018,-151.0,0.00010991,2]
[336269678,1724753443028,-559.71,0.00010991,2]
[336269679,1724753443037,-1071.99,0.00010991,2]
[336269680,1724753443047,-500.0,0.00010991,2]
[336269681,1724753443056,-500.0,0.00010991,2]
[336269682,1724753443065,-500.0,0.00010991,2]
[336269683,1724753443074,-691.86,0.00010991,2]
[336269684,1724753443083,-500.0,0.00010991,2]
[336269685,1724753443092,-500.0,0.00010991,2]
[336269686,1724753443101,-500.0,0.00010991,2]
[336269687,1724753443109,-500.0,0.00010991,2]
[336269688,1724753443119,-500.0,0.00010991,2]
[336269690,1724753443128,-500.0,0.00010991,2]
[336269692,1724753443137,-500.0,0.00010991,2]
[336269694,1724753443146,-500.0,0.00010991,2]
[336269696,1724753443155,-500.0,0.00010991,2]
[336269698,1724753443164,-151.0,0.00010991,2]
[336269700,1724753443173,-151.0,0.00010991,2]
[336269701,1724753443182,-500.0,0.00010991,2]
[336269703,1724753443191,-549.78,0.00010991,2]
[336269705,1724753443200,-500.0,0.00010991,2]
[336269707,1724753443210,-151.0,0.00010991,2]
[336269709,1724753443219,-1400.7,0.00010991,2]
[336269711,1724753443228,-206.153817,0.00010991,2]
[336269713,1724753443237,-500.0,0.00010991,2]
[336269715,1724753443247,-151.0,0.00010991,2]
[336269717,1724753443256,-1109.94,0.00010991,2]
[336269719,1724753443265,-702.7,0.00010991,2]
[336269721,1724753443276,-5103.94,0.00010991,2]
[336269723,1724753443285,-1278.92,0.00010991,2]
[336269725,1724753443295,-151.0,0.00010991,2]
[336269727,1724753443304,-1963.25,0.00010991,2]
[336269728,1724753443314,-6017.97,0.00010991,2]
[336269730,1724753443323,-500.0,0.00010991,2]
[336269732,1724753443332,-500.0,0.00010991,2]
[336269734,1724753443342,-1943.33,0.00010991,2]
[336269736,1724753443352,-500.0,0.00010991,2]
[336269738,1724753443362,-500.0,0.00010991,2]
[336269740,1724753443372,-1243.71,0.00010991,2]
[336269742,1724753443381,-244.96442994,0.00010991,2]
[336269744,1724753443391,-500.0,0.00010992,2]
[336269746,1724753443400,-701.14,0.00010992,2]
[336269748,1724753443409,-500.0,0.00010992,2]
[336269750,1724753443418,-500.0,0.00010992,2]